Cogmind - Beta 15 @@@ ROGUE MODE // 2025.08.07 @ 21:05:31 Player: carterz30cal Result: Self-destructed Performance ------------- Evolutions (1) 500 Regions Visited (3) 600 Robots Destroyed (46) 230 Value Destroyed (661) 661 Prototype IDs (3) 60 Alien Tech Used (0) 0 Bonus (0) 0 TOTAL SCORE: 2051 Bonus ------- None Cogmind --------- Core Integrity 269/400 Matter 268/300 Energy 280/280 System Corruption 0% Temperature Cool (0) Movement Rolling (120) Ox2 Location -9/Materials Parts ------- > --- POWER (1) -------- Heavy Ion Engine > --- PROPULSION (4) --- Aluminum Leg Aluminum Leg Aluminum Leg Armored Wheel > --- UTILITY (2) ------ Medium Storage Unit Hardened Light Armor Plating > --- WEAPON (2) ------- Light Cannon > --- INVENTORY (10) --- Heavy Ion Engine Seismic Detector Targeting Computer Tractor Beam Rocket Launcher Rocket Launcher Peak State ------------ > --- POWER ------------ Heavy Ion Engine > --- PROPULSION ------- Aluminum Leg Aluminum Leg Aluminum Leg Armored Wheel > --- UTILITY ---------- Small Storage Unit Hardened Light Armor Plating > --- WEAPON ----------- Assault Rifle Light Cannon > --- INVENTORY -------- Heavy Ion Engine Seismic Detector Targeting Computer Tractor Beam Rocket Launcher Rocket Launcher [Rating: 14] Favorites ----------- Power Ion Engine Engine Ion Engine Propulsion Aluminum Leg Leg Aluminum Leg Wheel Armored Wheel Utility Small Storage Unit Device Seismic Detector Storage Small Storage Unit Protection Hardened Light Armor Plating Weapon Light Cannon Energy Gun Improved EM Shotgun Ballistic Gun Assault Rifle Ballistic Cannon Light Cannon Launcher Rocket Launcher Build | -11 -10 -10 -9 ------- Run | Yrd Mat Min Mat Slots Evolved 2 | . . . 2 Power . | . . . . Propulsion 2 | . . . 2 Utility . | . . . . Weapon . | . . . . Parts Attached 16 | 1 7 1 7 Power 2 | . 1 . 1 Engine 2 | . 1 . 1 Core . | . . . . Reactor . | . . . . Propulsion 3 | . 1 . 2 Treads . | . . . . Leg 2 | . 1 . 1 Wheel 1 | . . . 1 Hover . | . . . . Flight . | . . . . Utility 5 | 1 1 . 3 Device 1 | 1 . . . Storage 2 | . . . 2 Processor . | . . . . Hackware . | . . . . Protection 2 | . 1 . 1 Artifact . | . . . . Weapon 6 | . 4 1 1 Energy Gun 1 | . . . 1 Energy Cannon . | . . . . Ballistic Gun 2 | . 2 . . Ballistic Cannon 1 | . 1 . . Launcher 2 | . 1 1 . Special Weapon . | . . . . Impact Weapon . | . . . . Slashing Weapon . | . . . . Piercing Weapon . | . . . . Special Melee Weapon . | . . . . Unidentified Prototypes 1 | . . . 1 Parts Lost 2 | . . 1 1 Power . | . . . . Propulsion . | . . . . Utility 1 | . . 1 . Weapon 1 | . . . 1 Highest Loss Streak 1 | . . 1 1 To Critical Strikes . | . . . . Average Backups 6 | 6 7 7 6 Power 1 | 1 1 1 1 Propulsion . | 4 2 1 . Utility 2 | . 2 3 3 Weapon 1 | 1 2 2 2 Tool/Special . | . . . . Unused Backups 9 | . 2 . 7 Power 1 | . . . 1 Propulsion 2 | . 2 . . Utility 4 | . . . 4 Weapon 2 | . . . 2 Tool/Special . | . . . . Average Slot Usage (%) 95 | . 100 99 92 Engine 12 | . 14 14 11 Leg 28 | . 28 28 29 Wheel 6 | . . . 11 Device 1 | . 4 . . Storage 12 | . 14 14 11 Protection 10 | . 9 13 10 Ballistic Gun 11 | . 17 11 7 Ballistic Cannon 11 | . 10 14 11 Peak Build Rating 14 | 7 8 8 14 Average Rating 10 | 6 7 7 12 On Entrance 7 | 6 7 8 7 Naked Turns . | . . . . Heaviest Build 98 | 14 18 20 98 Greatest Support 30 | 20 20 20 30 Greatest Overweight (x) 8 | . . . 8 Average Overweight (x) 1 | . . . 1 Largest Inventory Capacity 25 | 8 8 8 25 Average Capacity 11 | 8 8 8 14 Most Carried 8 | 6 8 7 8 Average Carried 6 | 6 7 7 6 Final Capacity 10 | 8 8 8 10 Final Carried 7 | 6 7 7 6 Class Distribution -------------------- 100% | Mutant Dominant Class ---------------- Mutant | -10/Materials Mutant | -10/Mines Mutant | -9/Materials Resources | -11 -10 -10 -9 ----------- Run | Yrd Mat Min Mat Matter Collected 1057 | 222 48 5 782 Remotely . | . . . . Salvage Created 987 | 30 212 100 645 Parts 95 | 2 15 15 63 Haulers Intercepted 2 | . . . 2 Recyclers Shooed 2 | . . . 2 Parts Field Recycled . | . . . . Retrieved Matter . | . . . . Parts Self-Destructed . | . . . . Prevented . | . . . . Kills | -11 -10 -10 -9 ------- Run | Yrd Mat Min Mat Combat Hostiles Destroyed 24 | . 7 6 11 Guns 5 | . 3 . 2 Cannons 13 | . 2 2 9 AOE 6 | . 2 4 . Classes Destroyed 11 | 1 4 2 4 Worker 5 | . . . 5 Builder 5 | . . 1 4 Tunneler 3 | 1 . 2 . Hauler 2 | . . . 2 Recycler 3 | . . . 3 Operator 2 | . 1 . 1 Watcher 4 | . 1 . 3 Swarmer 12 | . 2 3 7 Grunt 8 | . 5 1 2 Sentry 2 | . . . 2 Assembled 2 | . . 2 . Best Kill Streak 9 | 1 4 9 8 Combat Bots Only 6 | . 3 6 4 Max Kills in Single Turn 3 | 1 1 3 2 Gunslinging . | . . . . Exploded 3 | . 1 3 . Melee . | . . . . Uniques/NPCs Destroyed . | . . . . Combat | -11 -10 -10 -9 -------- Run | Yrd Mat Min Mat Hostile Shots Fired 101 | . 19 23 59 Missed 30 | . 6 8 16 Hits 71 | . 13 15 43 Projectile 71 | . 13 15 43 Critical Strikes 2 | . 1 . 1 Damage Taken 975 | . 115 392 468 Core 262 | . 15 116 131 Absorbed by Shields . | . . . . Core Remaining (%) 73 | 100 . 47 . Volleys Fired 111 | 3 13 12 83 Largest 2 | 2 2 2 2 Hottest 63 | 40 50 63 50 Shots Fired 185 | 6 26 18 135 Gun 77 | 6 16 3 52 Cannon 98 | . 8 7 83 Launcher 10 | . 2 8 . Special . | . . . . Kinetic 175 | 6 24 10 135 Thermal . | . . . . Explosive 10 | . 2 8 . Electromagnetic . | . . . . Robot Hit Streak 12 | 1 4 4 12 Robot Miss Streak 4 | 1 2 1 4 Penetration Max . | . . . . Secondary Targets . | . . . . Shots Hit Robots 97 | 3 12 4 78 Core Hits 58 | 2 12 12 32 Critical Kills . | . . . . Critical Parts Destroyed 1 | . . . 1 Critical Strikes 3 | . . 1 2 Destroy 1 | . . . 1 Blast 2 | . . 1 1 Melee Attacks . | . . . . Impact . | . . . . Slashing . | . . . . Piercing . | . . . . Sneak Attacks . | . . . . Combat Hostiles . | . . . . Follow-up Attacks . | . . . . Damage Inflicted 2276 | 21 276 508 1471 Guns 499 | 21 131 . 347 Cannons 1056 | . 56 56 944 Explosions 721 | . 89 452 180 Melee . | . . . . Ramming . | . . . . Kinetic 1555 | 21 187 56 1291 Thermal 180 | . . . 180 Explosive 541 | . 89 452 . Electromagnetic . | . . . . Impact . | . . . . Slashing . | . . . . Piercing . | . . . . Highest Corruption . | . . . . Average Corruption . | . . . . Corruption Purged . | . . . . Corruption Blocked . | . . . . Overload Shots . | . . . . Overflow Damage 123 | . . 42 81 Projectiles 9 | . . . 9 Explosions 114 | . . 42 72 Melee . | . . . . Knockbacks 8 | . 1 . 7 Impact . | . . . . Kinetic 8 | . 1 . 7 Secondary . | . . . . Self-Inflicted Damage 279 | . . 220 59 Shots 8 | . . 7 1 Rammed . | . . . . Targets Rammed . | . . . . Kicked . | . . . . Crushed . | . . . . Highest Temperature 254 | . 8 39 254 Average Temperature 38 | . 4 23 48 Received Heat Transfer 171 | . 30 42 99 Siege Activations . | . . . . Martial Activations . | . . . . Shielding Activations . | . . . . Robots Disrupted . | . . . . Combat Hostiles . | . . . . Robots Corrupted . | . . . . Combat Hostiles . | . . . . Parts Fried . | . . . . Impact Corruptions . | . . . . Robots Melted . | . . . . Combat Hostiles . | . . . . Parts Melted . | . . . . Heat Transferred 100 | . . . 100 Parts Sabotaged . | . . . . Parts Stolen . | . . . . Parts Stripped . | . . . . Power Chain Reactions . | . . . . Alert | -11 -10 -10 -9 ------- Run | Yrd Mat Min Mat Maximum Alert Level . | . . . . Low Security (%) 100 | 100 100 100 100 Level 1 . | . . . . Level 2 . | . . . . Level 3 . | . . . . Level 4 . | . . . . Level 5 . | . . . . High Security . | . . . . Max Security . | . . . . Peak Influence 128 | 5 75 128 107 Initial 49 | . . 15 49 Average 41 | 1 34 14 54 Influence Increases 779 | 5 213 150 411 Destroy 0b10 Robot/C 440 | . 140 80 220 Destroy 0b10 Robot/NC 120 | 5 10 15 90 Destroy Leader 102 | . 32 10 60 Successful Hack 5 | . 5 . . Disable Machine 15 | . . . 15 Destroy Structure 82 | . 11 45 26 Lose Combat Pursuer 15 | . 15 . . Influence Decreases 682 | 5 173 62 442 Entered New Map 104 | . . 25 79 Time Decay 558 | 5 173 27 353 Lost Part 20 | . . 10 10 Squads Dispatched 3 | . 2 . 1 Investigation 1 | . 1 . . Extermination . | . . . . Reinforcement 2 | . 1 . 1 Assault . | . . . . Garrison . | . . . . Intercept . | . . . . Searches Triggered . | . . . . Construction Impeded . | . . . . Haulers Reinforced . | . . . . Active Scanning Responses . | . . . . Cargo Convoy Interrupts . | . . . . Stealth | -11 -10 -10 -9 --------- Run | Yrd Mat Min Mat Distress Signals . | . . . . Communications Jammed . | . . . . Distress Signals . | . . . . Times Spotted 38 | . 11 8 19 Peak Tracking Total 5 | . 4 4 5 Tactical Retreats 1 | . 1 . . Traps | -11 -10 -10 -9 ------- Run | Yrd Mat Min Mat Traps Triggered 2 | . 2 . . Indirectly . | . . . . Trap Hack Attempts . | . . . . Triggered . | . . . . Disarmed . | . . . . Reprogrammed . | . . . . Reused . | . . . . Traps Extracted . | . . . . Installed . | . . . . Triggered . | . . . . Machines | -11 -10 -10 -9 ---------- Run | Yrd Mat Min Mat Machines Disabled 1 | . . . 1 Max in Single Turn 1 | . . . 1 Machines Repaired . | . . . . Machines Dismantled . | . . . . Machines Sabotaged . | . . . . Overloaded Fab Kills . | . . . . Hacking | -11 -10 -10 -9 --------- Run | Yrd Mat Min Mat Machines Accessed 1 | . 1 . . Terminals 1 | . 1 . . Fabricators . | . . . . Repair Stations . | . . . . Recycling Units . | . . . . Scanalyzers . | . . . . Garrison Access . | . . . . Total Hacks 2 | . 2 . . Successful 1 | . 1 . . Failed 1 | . 1 . . Catastrophic . | . . . . Database Lockouts . | . . . . Manual . | . . . . Terminals 2 | . 2 . . Fabricators . | . . . . Repair Stations . | . . . . Recycling Units . | . . . . Scanalyzers . | . . . . Garrison Access . | . . . . Terminal Hacks 1 | . 1 . . Prototype ID Bank 1 | . 1 . . Fabricator Hacks . | . . . . Repair Station Hacks . | . . . . Recycling Unit Hacks . | . . . . Scanalyzer . | . . . . Garrison Access Hacks . | . . . . Unauthorized Hacks . | . . . . Terminals . | . . . . Fabricators . | . . . . Repair Stations . | . . . . Recycling Units . | . . . . Scanalyzers . | . . . . Garrison Access . | . . . . Data Cores Recovered . | . . . . Used . | . . . . Hacking Detections . | . . . . Full Trace Events . | . . . . Feedback Events . | . . . . Feedback Blocked . | . . . . Robot Schematics Acquired . | . . . . Robots Built . | . . . . Authchips . | . . . . Time . | . . . . Total Robot Build Rating . | . . . . Part Schematics Acquired . | . . . . Parts Built . | . . . . Authchips . | . . . . Time . | . . . . Total Part Build Rating . | . . . . Parts Repaired . | . . . . Time . | . . . . Parts Recycled . | . . . . Recycled Matter . | . . . . Retrieved Matter . | . . . . Retrieved Components . | . . . . Parts Scanalyzed . | . . . . Part Schematics Acquired . | . . . . Parts Damaged . | . . . . Bothacking | -11 -10 -10 -9 ------------ Run | Yrd Mat Min Mat Used RIF Installer . | . . . . Robots Hacked . | . . . . Non-combat . | . . . . Combat . | . . . . Robot Hacks Applied . | . . . . Relay Couplers Released . | . . . . Fabnet Peak Effective % . | . . . . Robots Rewired . | . . . . Allies Hacked . | . . . . Hacks Repelled . | . . . . Allies | -11 -10 -10 -9 -------- Run | Yrd Mat Min Mat Total Allies . | . . . . Largest Group . | . . . . Highest-Rated Group . | . . . . Highest-Rated Ally . | . . . . Total Orders . | . . . . Ally Attacks . | . . . . Total Damage . | . . . . Kills . | . . . . Allies Corrupted . | . . . . Allies Melted . | . . . . Intel | -11 -10 -10 -9 ------- Run | Yrd Mat Min Mat Active Infowar (turns) 144 | 29 115 . . Seismic 144 | 29 115 . . Robot Analysis Total . | . . . . Derelict Logs Recovered . | . . . . Drone Launches . | . . . . Drone Recoveries . | . . . . Exploration | -11 -10 -10 -9 ------------- Run | Yrd Mat Min Mat Turns Passed 1495 | 57 432 197 809 Spaces Moved 731 | 40 233 71 387 Core . | . . . . Treads . | . . . . Legs 459 | 40 233 71 115 Wheels 272 | . . . 272 Hover . | . . . . Flight . | . . . . Fastest Speed 105 | 120 120 120 105 Average Speed 131 | 120 120 120 141 Slowest Speed 330 | 120 120 120 330 Overloaded Moves . | . . . . Propulsion Burnouts . | . . . . Robots Hopped . | . . . . Potential Cave-ins . | . . . . Cave-ins Triggered . | . . . . Exploration Rate (%) 26 | 3 45 29 28 Regions Visited 3 Branch Regions 1 Pre-discovered Areas . | . . . . Known Exits Taken . | . . . . Unknown Exits Taken 3 | 1 1 1 . Scrap Searched . | . . . . Spaces Dug 6 | . . 6 . Terrain Destroyed 91 | . 11 52 28 Melee . | . . . . Projectile . | . . . . AOE 91 | . 11 52 28 Terrain Rammed . | . . . . Walls Destroyed . | . . . . Machines Disabled . | . . . . Actions | -11 -10 -10 -9 --------- Run | Yrd Mat Min Mat Total 1081 | 43 361 164 513 Wait 198 | . 93 81 24 Move 728 | 39 232 70 387 Hop . | . . . . Pick Up 12 | . 8 . 4 Fast Attach 5 | 1 2 . 2 Attach 2 | . . . 2 Detach . | . . . . Swap 11 | . 5 1 5 Drop 14 | . 8 . 6 Fire 111 | 3 13 12 83 Melee . | . . . . Ram . | . . . . Kick . | . . . . Crush . | . . . . Escape Stasis . | . . . . Rewire . | . . . . Trap . | . . . . Miscellaneous . | . . . . Route ------- -11/Scrapyard -10/Materials (discovered 2 exits: [*Mat] / [*Min]) -10/Mines -9/Materials (discovered 1 exit: [*Min]) History --------- Turn | Location | Event 1 | -11/Scrapyard | Discovered new exit (range 3) 58 | -11/Scrapyard | Entered Materials 194 | -10/Materials | Discovered new exit (range 15) 300 | -10/Materials | Build established: Mutant 454 | -10/Materials | Discovered new exit (range 12) 490 | -10/Materials | Entered Mines 557 | -10/Mines | Excavation squad dispatched 557 | -10/Mines | A large section of the Mines collapsed 679 | -10/Mines | Discovered new exit (range 7) 686 | -10/Mines | Core integrity fell below 50% 687 | -10/Mines | Entered Materials 687 | -9/Materials | Evolved 2 slots: Propulsion x2 1277 | -9/Materials | Discovered new exit (range 11) 1496 | -9/Materials | Self-destructed Last Messages --------------- 01437_ K-01 Serf knocked back. 01441_ Acquired 61 matter. 01443_ Acquired 3 matter. 01448_ K-01 Serf destroyed. 01451_ R-06 Scavenger collects Com. Wheel. 01452_ Extracted 50 matter. 01453_ Acquired 8 matter. 01454_ U-05 Engineer builds a Door. 01454_ R-06 Scavenger destroyed. 01461_ U-05 Engineer destroyed. 01467_ Acquired 53 matter. 01468_ Acquired 4 matter. 01471_ W-16 Scout destroyed. 01478_ K-01 Serf collects debris. 01479_ Acquired 14 matter. 01481_ K-01 Serf collects debris. 01485_ Acquired 4 matter. 01487_ W-16 Scout Hover Unit blasted off. 01487_ W-16 Scout destroyed. 01490_ T-07 Excavator knocked back. Map ----- +----------------------------------------------------+ | ?????????????????????????????????????????## ##?## | | ?????????????????????????????????????????# #### | | ???????????????????????????????????????? +!%/ | | ???????????????????? ????????????????? # | | ????????????????????% ???????????????? # % #### | | ???????????????????? ??????????########### [##### | | ???????????????????? ??????????# | # # | | ???????????????????? ??????????# # *+ | | ???????????????????? ??????????# + # | | ????????######?????? ??????????# # # | | ????????# #?????# ??????????# """ """ ## # | | ????????# #?????# ??????????# """ """ ## # | | ????????# #?????# ??????????? """ """ ## # | | ????????# #?????# #???????????? ##*# | | ????????# ###???#%#?#########??########## # | | ????????# + #???# #?# #???????????#!##### | | ????????# # #???#%#?# #???????????#=#???? | | ????????# # #####!###=| #???????????# #???? | | ????????# # !!!!= +%*! ! #?????????###+##### | | ????????############+###=!== = #?????????# | | ?????????????????? =! #!** * #?????????# | | ????????????????? #=!=! #?????????# | | ????????????????#] """ #!*% #?????????# | | ????????????????# """ #=! #?????????# ! | | ????????????????# """ # #?????????# ! | | ???????????????######### @ #?????????# = | | ??????????###+## ##/######?????????# % ! | | ????????? k #????????????#######+# | | ????????? < ##############???# | | ????????? [[] # #???# | | ??????????[[] #" "# # """ !!! #???# | | ??????????[????#" !"| "# # """ !! #???# | | ???????????????#""""""?#t + """ !!% #???# | | ???????????????######### # ==[ #???## | | ????????? ########+#####????# | | ????????????????# #####%! % #??????#% | | ????????????????# |! %######## | | ????????????????+ " | | ????????????????###+#### % | | ???????????????????????# ##### | | ???????????????????????# ###???## ############ | | ???????????????????????# #??????# #??????????? | | ???????????????????????# #??????# #??????????? | | ???????????????????????# #??????# #??????????? | | ???????????????????????# #??????# #??????????? | | ???????????????????????# #??????# #??????????? | | ???????????????????????# #??????# #??????????? | | ???????????????????????? #??????+ +??????????? | | ???????????????????????? #??????# #??????????? | | ???????????????????????? ???????# ???????????? | +----------------------------------------------------+ Best States ------------- Heat Dissipation 28 Energy Generation 14 Energy Capacity 280 Matter Stores 300 Matter Capacity 300 Sight Range 16 Terrain Scan Density 10 Armor Coverage 150 Evasion (%) 55 Item Schematics ----------------- None Robot Schematics ------------------ None Fabricated ------------ Nothing Repaired ---------- Nothing Alien Tech Used ----------------- None Achievements -------------- None Challenges ------------ None Game ------ Seed LinkedAerolevRefractor Manual? 0 Play Time 00:13:47 Cumulative 23.1 hours Start 2025.08.02 @ 13:13:59 End 2025.08.07 @ 21:05:31 Sessions 6 Manual Loads 0 Difficulty Rogue Special Mode None Game No. 44 Rogue 44 Adventurer 0 Explorer 0 Win Type - Total 0 Types 0/0/0/0/0/0/0/0/0/0 Lore% 12 Gallery% 19 Achievement% 23 Wizard Run 0 Options --------- Layout 0 ASCII 1 Keyboard 0 Movement Arrows Keybinds 0 Fullscreen 1 Font 18/Smallcaps Map View 38x25 Zoom Use 0% Tactical HUD 1 Map Filters NONE Filters NONE Steam 1 RUN: aeb37458-b14e-4335-8ecc-a582709f0962